[Event "Titled Tuesday Blitz June 28 Early 2022"]
[White "Barp, Alberto"]
[Black "Seliverstov, Vladimir"]
[WhiteFideId "872555"]
[BlackFideId "4192036"]
[WhiteElo "2229"]
[BlackElo "2489"]
[Result "0-1"]
[Round "03"]
[TimeControl "180+1"]
[Date "2022.06.28"]
[WhiteClock "0:00:21"]
[BlackClock "0:00:17"]

1. d4 {[%clk 0:03:00]}  d5 {[%clk 0:02:58]} 2. Nf3 {[%clk 0:02:59]}  Nf6 {[%clk 0:02:57]} 3. Bf4 {[%clk 0:02:59]}  c5 {[%clk 0:02:56]} 4. e3 {[%clk 0:02:59]}  Nc6 {[%clk 0:02:56]} 5. Nbd2 {[%clk 0:03:00]}  e6 {[%clk 0:02:54]} 6. c3 {[%clk 0:03:00]}  Nh5 {[%clk 0:02:54]} 7. Bg5 {[%clk 0:02:58]}  f6 {[%clk 0:02:54]} 8. Bh4 {[%clk 0:02:47]}  g6 {[%clk 0:02:41]} 9. Be2 {[%clk 0:02:39]}  Be7 {[%clk 0:02:33]} 10. O-O {[%clk 0:02:37]}  O-O {[%clk 0:02:33]} 11. c4 {[%clk 0:02:37]}  cxd4 {[%clk 0:02:30]} 12. exd4 {[%clk 0:02:38]}  Nf4 {[%clk 0:02:30]} 13. cxd5 {[%clk 0:02:31]}  Nxe2+ {[%clk 0:02:30]} 14. Qxe2 {[%clk 0:02:30]}  Qxd5 {[%clk 0:02:31]} 15. Rfd1 {[%clk 0:02:12]}  g5 {[%clk 0:02:25]} 16. Bg3 {[%clk 0:02:08]}  g4 {[%clk 0:02:26]} 17. Ne1 {[%clk 0:02:05]}  f5 {[%clk 0:02:25]} 18. Nb3 {[%clk 0:01:55]}  f4 {[%clk 0:01:33]} 19. Qxg4+ {[%clk 0:01:54]}  Kh8 {[%clk 0:01:34]} 20. Bxf4 {[%clk 0:01:24]}  e5 {[%clk 0:01:33]} 21. Bxe5+ {[%clk 0:01:25]}  Nxe5 {[%clk 0:01:33]} 22. dxe5 {[%clk 0:01:24]}  Qxb3 {[%clk 0:00:34]} 23. Qxc8 {[%clk 0:01:23]}  Qb6 {[%clk 0:00:34]} 24. Qc2 {[%clk 0:01:18]}  Rxf2 {[%clk 0:00:34]} 25. Qxf2 {[%clk 0:01:08]}  Bc5 {[%clk 0:00:33]} 26. Qxc5 {[%clk 0:01:05]}  Qxc5+ {[%clk 0:00:34]} 27. Kh1 {[%clk 0:01:05]}  Qxe5 {[%clk 0:00:35]} 28. Nd3 {[%clk 0:01:05]}  Qg7 {[%clk 0:00:34]} 29. Nf4 {[%clk 0:01:02]}  Qxb2 {[%clk 0:00:31]} 30. Rab1 {[%clk 0:01:01]}  Qxa2 {[%clk 0:00:28]} 31. Rxb7 {[%clk 0:01:01]}  Qa4 {[%clk 0:00:24]} 32. Rf1 {[%clk 0:00:59]}  Qc4 {[%clk 0:00:23]} 33. Kg1 {[%clk 0:00:48]}  Qc5+ {[%clk 0:00:20]} 34. Kh1 {[%clk 0:00:46]}  Qc4 {[%clk 0:00:20]} 35. Kg1 {[%clk 0:00:47]}  a5 {[%clk 0:00:20]} 36. g3 {[%clk 0:00:42]}  a4 {[%clk 0:00:20]} 37. Nh3 {[%clk 0:00:33]}  a3 {[%clk 0:00:20]} 38. Rff7 {[%clk 0:00:31]}  Qd4+ {[%clk 0:00:18]} 39. Nf2 {[%clk 0:00:22]}  a2 {[%clk 0:00:17]} 40. Rxh7+ {[%clk 0:00:21]}  Kg8 {[%clk 0:00:17]} 0-1


[Site "https://www.chess.com"]

[Event "Titled Tuesday Blitz June 28 Early 2022"]
[White "Bychkov, Vladimir"]
[Black "Ghazarian, Kirk"]
[WhiteFideId "24151513"]
[BlackFideId "30908604"]
[WhiteElo "2197"]
[BlackElo "2003"]
[Result "0-1"]
[Round "03"]
[TimeControl "180+1"]
[Date "2022.06.28"]
[WhiteClock "0:00:05"]
[BlackClock "0:00:05"]

1. c4 {[%clk 0:03:00]}  c6 {[%clk 0:02:57]} 2. g3 {[%clk 0:02:58]}  d5 {[%clk 0:02:57]} 3. Qc2 {[%clk 0:02:57]}  g6 {[%clk 0:02:57]} 4. Bg2 {[%clk 0:02:57]}  Bg7 {[%clk 0:02:57]} 5. Nf3 {[%clk 0:02:58]}  Nf6 {[%clk 0:02:56]} 6. O-O {[%clk 0:02:58]}  O-O {[%clk 0:02:57]} 7. d4 {[%clk 0:02:57]}  Bf5 {[%clk 0:02:53]} 8. Qb3 {[%clk 0:02:57]}  dxc4 {[%clk 0:02:49]} 9. Qxc4 {[%clk 0:02:57]}  Nbd7 {[%clk 0:02:47]} 10. Nc3 {[%clk 0:02:54]}  Ne4 {[%clk 0:02:48]} 11. Rd1 {[%clk 0:02:50]}  Nxc3 {[%clk 0:02:41]} 12. bxc3 {[%clk 0:02:49]}  Be4 {[%clk 0:02:42]} 13. Ba3 {[%clk 0:02:46]}  Nb6 {[%clk 0:02:39]} 14. Qb3 {[%clk 0:02:32]}  Bd5 {[%clk 0:02:39]} 15. Qc2 {[%clk 0:02:31]}  Nc4 {[%clk 0:02:39]} 16. Bc1 {[%clk 0:02:30]}  f5 {[%clk 0:02:34]} 17. Nd2 {[%clk 0:02:28]}  Bxg2 {[%clk 0:02:29]} 18. Kxg2 {[%clk 0:02:20]}  Qd5+ {[%clk 0:02:26]} 19. e4 {[%clk 0:02:08]}  fxe4 {[%clk 0:02:25]} 20. Qxe4 {[%clk 0:02:08]}  Nxd2 {[%clk 0:02:21]} 21. Qxd5+ {[%clk 0:02:07]}  cxd5 {[%clk 0:02:22]} 22. Bxd2 {[%clk 0:02:07]}  Rfc8 {[%clk 0:02:14]} 23. Rab1 {[%clk 0:02:07]}  b6 {[%clk 0:02:13]} 24. Rb5 {[%clk 0:02:05]}  e6 {[%clk 0:02:13]} 25. a4 {[%clk 0:02:02]}  Rc6 {[%clk 0:02:13]} 26. Ra1 {[%clk 0:02:00]}  Rb8 {[%clk 0:02:00]} 27. a5 {[%clk 0:01:58]}  a6 {[%clk 0:02:00]} 28. Rxb6 {[%clk 0:01:49]}  Rbxb6 {[%clk 0:02:00]} 29. axb6 {[%clk 0:01:50]}  Rxb6 {[%clk 0:02:01]} 30. Kf3 {[%clk 0:01:42]}  Kf7 {[%clk 0:02:01]} 31. Ke2 {[%clk 0:01:42]}  Ke8 {[%clk 0:02:02]} 32. Kd3 {[%clk 0:01:42]}  Kd7 {[%clk 0:02:03]} 33. h4 {[%clk 0:01:42]}  h5 {[%clk 0:02:02]} 34. f3 {[%clk 0:01:40]}  Bf6 {[%clk 0:02:02]} 35. g4 {[%clk 0:01:35]}  hxg4 {[%clk 0:02:02]} 36. fxg4 {[%clk 0:01:35]}  Bxh4 {[%clk 0:02:03]} 37. Rh1 {[%clk 0:01:34]}  g5 {[%clk 0:01:55]} 38. Rf1 {[%clk 0:01:31]}  Ke7 {[%clk 0:01:54]} 39. Bc1 {[%clk 0:01:29]}  Rb3 {[%clk 0:01:34]} 40. Kc2 {[%clk 0:01:28]}  Rb6 {[%clk 0:01:20]} 41. Ba3+ {[%clk 0:01:27]}  Kd7 {[%clk 0:01:21]} 42. Rf7+ {[%clk 0:01:26]}  Kc6 {[%clk 0:01:21]} 43. Bc5 {[%clk 0:01:17]}  Rb7 {[%clk 0:01:00]} 44. Rf6 {[%clk 0:01:16]}  Kd7 {[%clk 0:01:01]} 45. Rf7+ {[%clk 0:01:15]}  Kc8 {[%clk 0:01:01]} 46. Rf6 {[%clk 0:01:10]}  Kd7 {[%clk 0:00:51]} 47. Rf7+ {[%clk 0:01:05]}  Kc6 {[%clk 0:00:52]} 48. Rf6 {[%clk 0:00:51]}  Kb5 {[%clk 0:00:52]} 49. Rxe6 {[%clk 0:00:50]}  Bg3 {[%clk 0:00:53]} 50. Kd3 {[%clk 0:00:45]}  a5 {[%clk 0:00:50]} 51. Re2 {[%clk 0:00:34]}  Kc6 {[%clk 0:00:42]} 52. Ra2 {[%clk 0:00:33]}  Bc7 {[%clk 0:00:35]} 53. Be7 {[%clk 0:00:31]}  Rb1 {[%clk 0:00:31]} 54. Bxg5 {[%clk 0:00:29]}  Rg1 {[%clk 0:00:31]} 55. Be3 {[%clk 0:00:21]}  Rxg4 {[%clk 0:00:30]} 56. c4 {[%clk 0:00:21]}  Rg3 {[%clk 0:00:25]} 57. cxd5+ {[%clk 0:00:19]}  Kxd5 {[%clk 0:00:26]} 58. Rb2 {[%clk 0:00:17]}  Bf4 {[%clk 0:00:24]} 59. Rb5+ {[%clk 0:00:07]}  Kd6 {[%clk 0:00:19]} 60. Rxa5 {[%clk 0:00:05]}  Rxe3+ {[%clk 0:00:19]} 61. Kc4 {[%clk 0:00:05]}  Re1 {[%clk 0:00:19]} 62. Ra6+ {[%clk 0:00:05]}  Kd7 {[%clk 0:00:19]} 63. Rf6 {[%clk 0:00:05]}  Bc7 {[%clk 0:00:17]} 64. Rf7+ {[%clk 0:00:05]}  Kc6 {[%clk 0:00:14]} 65. Rf6+ {[%clk 0:00:03]}  Bd6 {[%clk 0:00:13]} 66. d5+ {[%clk 0:00:03]}  Kd7 {[%clk 0:00:13]} 67. Rf7+ {[%clk 0:00:04]}  Be7 {[%clk 0:00:13]} 68. Rh7 {[%clk 0:00:04]}  Re4+ {[%clk 0:00:13]} 69. Kd3 {[%clk 0:00:04]}  Rg4 {[%clk 0:00:13]} 70. Rh6 {[%clk 0:00:05]}  Ra4 {[%clk 0:00:12]} 71. Rb6 {[%clk 0:00:05]}  Bc5 {[%clk 0:00:11]} 72. Rg6 {[%clk 0:00:05]}  Rd4+ {[%clk 0:00:11]} 73. Kc3 {[%clk 0:00:06]}  Rxd5 {[%clk 0:00:11]} 74. Rg7+ {[%clk 0:00:06]}  Kc6 {[%clk 0:00:11]} 75. Rg6+ {[%clk 0:00:07]}  Bd6 {[%clk 0:00:11]} 76. Rh6 {[%clk 0:00:07]}  Rg5 {[%clk 0:00:11]} 77. Kd4 {[%clk 0:00:07]}  Rg4+ {[%clk 0:00:11]} 78. Kd3 {[%clk 0:00:07]}  Kd5 {[%clk 0:00:09]} 79. Rh5+ {[%clk 0:00:08]}  Be5 {[%clk 0:00:09]} 80. Ke2 {[%clk 0:00:08]}  Rg3 {[%clk 0:00:09]} 81. Kd2 {[%clk 0:00:09]}  Ke4 {[%clk 0:00:08]} 82. Kc2 {[%clk 0:00:09]}  Rf3 {[%clk 0:00:06]} 83. Rh4+ {[%clk 0:00:08]}  Kd5 {[%clk 0:00:07]} 84. Rg4 {[%clk 0:00:08]}  Bd4 {[%clk 0:00:07]} 85. Rh4 {[%clk 0:00:07]}  Kc4 {[%clk 0:00:07]} 86. Kd1 {[%clk 0:00:07]}  Rf2 {[%clk 0:00:08]} 87. Ke1 {[%clk 0:00:08]}  Ra2 {[%clk 0:00:06]} 88. Rh7 {[%clk 0:00:08]}  Kd3 {[%clk 0:00:06]} 89. Kf1 {[%clk 0:00:08]}  Rf2+ {[%clk 0:00:06]} 90. Ke1 {[%clk 0:00:09]}  Rf6 {[%clk 0:00:06]} 91. Re7 {[%clk 0:00:06]}  Bc3+ {[%clk 0:00:05]} 92. Kd1 {[%clk 0:00:05]}  Rf1+ {[%clk 0:00:05]} 0-1


[Site "https://www.chess.com"]

[Event "Titled Tuesday Blitz June 28 Early 2022"]
[White "Chen, Qi b"]
[Black "Urbina Perez, Juan Antonio"]
[WhiteFideId "8614733"]
[BlackFideId "2217368"]
[WhiteElo "2432"]
[BlackElo "2192"]
[Result "1-0"]
[Round "03"]
[TimeControl "180+1"]
[Date "2022.06.28"]
[WhiteClock "0:00:37"]
[BlackClock "0:01:15"]

1. d4 {[%clk 0:03:00]}  d5 {[%clk 0:02:58]} 2. c4 {[%clk 0:03:00]}  c6 {[%clk 0:02:58]} 3. Nf3 {[%clk 0:03:01]}  Nf6 {[%clk 0:02:59]} 4. Nc3 {[%clk 0:03:01]}  a6 {[%clk 0:02:59]} 5. e3 {[%clk 0:02:59]}  Bf5 {[%clk 0:02:59]} 6. b3 {[%clk 0:02:52]}  e6 {[%clk 0:02:58]} 7. Bb2 {[%clk 0:02:52]}  Nbd7 {[%clk 0:02:59]} 8. Be2 {[%clk 0:02:51]}  Bd6 {[%clk 0:02:59]} 9. O-O {[%clk 0:02:51]}  Qe7 {[%clk 0:03:00]} 10. h3 {[%clk 0:02:49]}  Ba3 {[%clk 0:03:00]} 11. Qc1 {[%clk 0:02:46]}  Bxb2 {[%clk 0:02:59]} 12. Qxb2 {[%clk 0:02:47]}  h6 {[%clk 0:03:00]} 13. Rae1 {[%clk 0:02:47]}  O-O {[%clk 0:02:59]} 14. Nd2 {[%clk 0:02:48]}  Rfe8 {[%clk 0:02:57]} 15. Bf3 {[%clk 0:02:39]}  Rac8 {[%clk 0:02:54]} 16. e4 {[%clk 0:02:38]}  dxe4 {[%clk 0:02:55]} 17. Ndxe4 {[%clk 0:02:38]}  Nxe4 {[%clk 0:02:55]} 18. Nxe4 {[%clk 0:02:36]}  Bxe4 {[%clk 0:02:53]} 19. Rxe4 {[%clk 0:02:33]}  Nf6 {[%clk 0:02:54]} 20. Re3 {[%clk 0:02:24]}  a5 {[%clk 0:02:54]} 21. d5 {[%clk 0:02:05]}  cxd5 {[%clk 0:02:51]} 22. cxd5 {[%clk 0:02:05]}  e5 {[%clk 0:02:47]} 23. Rd1 {[%clk 0:01:46]}  Qd6 {[%clk 0:02:45]} 24. Qd2 {[%clk 0:01:41]}  Rc5 {[%clk 0:02:41]} 25. b4 {[%clk 0:01:33]}  axb4 {[%clk 0:02:40]} 26. Qxb4 {[%clk 0:01:34]}  e4 {[%clk 0:02:31]} 27. Be2 {[%clk 0:01:31]}  Rd8 {[%clk 0:02:22]} 28. Qxb7 {[%clk 0:01:26]}  Rxd5 {[%clk 0:02:16]} 29. Rxd5 {[%clk 0:01:24]}  Nxd5 {[%clk 0:02:17]} 30. Rg3 {[%clk 0:01:09]}  Rb8 {[%clk 0:01:58]} 31. Qa7 {[%clk 0:01:08]}  h5 {[%clk 0:01:42]} 32. Bxh5 {[%clk 0:00:58]}  Rb1+ {[%clk 0:01:27]} 33. Kh2 {[%clk 0:00:58]}  Qe6 {[%clk 0:01:28]} 34. Qd4 {[%clk 0:00:39]}  Nf6 {[%clk 0:01:18]} 35. Be2 {[%clk 0:00:38]}  Qd5 {[%clk 0:01:15]} 36. Qxf6 {[%clk 0:00:37]} 1-0


[Site "https://www.chess.com"]

[Event "Titled Tuesday Blitz June 28 Early 2022"]
[White "Costachi, Mihnea"]
[Black "Johnson, Donald"]
[WhiteFideId "1217518"]
[BlackFideId "30949122"]
[WhiteElo "2476"]
[BlackElo "1724"]
[Result "1-0"]
[Round "03"]
[TimeControl "180+1"]
[Date "2022.06.28"]
[WhiteClock "0:00:13"]
[BlackClock "0:00:01"]

1. b3 {[%clk 0:03:00]}  Nf6 {[%clk 0:02:58]} 2. Bb2 {[%clk 0:03:00]}  g6 {[%clk 0:02:58]} 3. Nf3 {[%clk 0:03:00]}  Bg7 {[%clk 0:02:58]} 4. e3 {[%clk 0:03:01]}  O-O {[%clk 0:02:58]} 5. Be2 {[%clk 0:03:02]}  c5 {[%clk 0:02:57]} 6. O-O {[%clk 0:03:01]}  Nc6 {[%clk 0:02:57]} 7. d4 {[%clk 0:03:01]}  cxd4 {[%clk 0:02:56]} 8. exd4 {[%clk 0:03:01]}  d5 {[%clk 0:02:54]} 9. c4 {[%clk 0:03:02]}  dxc4 {[%clk 0:02:50]} 10. bxc4 {[%clk 0:03:01]}  Ne8 {[%clk 0:02:34]} 11. Na3 {[%clk 0:02:55]}  Nd6 {[%clk 0:02:23]} 12. Qc1 {[%clk 0:02:36]}  Nf5 {[%clk 0:02:16]} 13. d5 {[%clk 0:02:36]}  Ncd4 {[%clk 0:02:10]} 14. Nxd4 {[%clk 0:02:35]}  Nxd4 {[%clk 0:02:11]} 15. Qd2 {[%clk 0:02:21]}  Qb6 {[%clk 0:01:36]} 16. Rab1 {[%clk 0:02:11]}  Bf5 {[%clk 0:01:26]} 17. Bxd4 {[%clk 0:02:11]}  Qxd4 {[%clk 0:01:24]} 18. Qxd4 {[%clk 0:02:11]}  Bxd4 {[%clk 0:01:25]} 19. Rxb7 {[%clk 0:02:11]}  Rfb8 {[%clk 0:01:17]} 20. Rb3 {[%clk 0:01:45]}  Bc5 {[%clk 0:00:49]} 21. Nb5 {[%clk 0:01:45]}  a6 {[%clk 0:00:45]} 22. Nc3 {[%clk 0:01:41]}  Bc2 {[%clk 0:00:41]} 23. Rxb8+ {[%clk 0:01:40]}  Rxb8 {[%clk 0:00:42]} 24. Rc1 {[%clk 0:01:32]}  Rb2 {[%clk 0:00:39]} 25. g4 {[%clk 0:01:20]}  Bd4 {[%clk 0:00:29]} 26. Nd1 {[%clk 0:01:18]}  Rxa2 {[%clk 0:00:24]} 27. Ne3 {[%clk 0:01:18]}  Be4 {[%clk 0:00:18]} 28. Kf1 {[%clk 0:01:15]}  Bc5 {[%clk 0:00:17]} 29. Nd1 {[%clk 0:01:06]}  Rc2 {[%clk 0:00:12]} 30. Ra1 {[%clk 0:01:05]}  Bd6 {[%clk 0:00:06]} 31. f3 {[%clk 0:00:55]}  Bxd5 {[%clk 0:00:01]} 32. cxd5 {[%clk 0:00:55]}  a5 {[%clk 0:00:02]} 33. Rxa5 {[%clk 0:00:54]}  Rd2 {[%clk 0:00:02]} 34. h3 {[%clk 0:00:49]}  Kg7 {[%clk 0:00:02]} 35. Ra4 {[%clk 0:00:46]}  Kf6 {[%clk 0:00:02]} 36. Ne3 {[%clk 0:00:43]}  Kg5 {[%clk 0:00:01]} 37. Ng2 {[%clk 0:00:36]}  Rb2 {[%clk 0:00:01]} 38. h4+ {[%clk 0:00:36]}  Kf6 {[%clk 0:00:02]} 39. Re4 {[%clk 0:00:35]}  Kg7 {[%clk 0:00:01]} 40. Ne3 {[%clk 0:00:34]}  Bc5 {[%clk 0:00:02]} 41. Nc4 {[%clk 0:00:30]}  Rb1+ {[%clk 0:00:01]} 42. Kg2 {[%clk 0:00:31]}  Rg1+ {[%clk 0:00:02]} 43. Kh2 {[%clk 0:00:32]}  Ra1 {[%clk 0:00:03]} 44. h5 {[%clk 0:00:31]}  Ra2 {[%clk 0:00:03]} 45. Kh3 {[%clk 0:00:29]}  gxh5 {[%clk 0:00:03]} 46. gxh5 {[%clk 0:00:29]}  Kh6 {[%clk 0:00:04]} 47. Kg4 {[%clk 0:00:27]}  Ra1 {[%clk 0:00:04]} 48. Ne5 {[%clk 0:00:27]}  Rg1+ {[%clk 0:00:04]} 49. Kh3 {[%clk 0:00:26]}  Kxh5 {[%clk 0:00:02]} 50. f4+ {[%clk 0:00:22]}  Kh6 {[%clk 0:00:02]} 51. Nxf7+ {[%clk 0:00:22]}  Kg7 {[%clk 0:00:02]} 52. Ng5 {[%clk 0:00:23]}  Kg6 {[%clk 0:00:01]} 53. Bd3 {[%clk 0:00:19]}  Ra1 {[%clk 0:00:02]} 54. Rxe7+ {[%clk 0:00:13]}  Kh5 {[%clk 0:00:01]} 55. Rxh7# {[%clk 0:00:13]} 1-0


[Site "https://www.chess.com"]

[Event "Titled Tuesday Blitz June 28 Early 2022"]
[White "Cruz Ravina, Francisco Javier"]
[Black "Shimanov, Aleksandr"]
[WhiteFideId "2228939"]
[BlackFideId "4198603"]
[WhiteElo "2622"]
[BlackElo "2605"]
[Result "0-1"]
[Round "03"]
[TimeControl "180+1"]
[Date "2022.06.28"]
[WhiteClock "0:00:01"]
[BlackClock "0:00:38"]

1. e4 {[%clk 0:03:00]}  e6 {[%clk 0:02:59]} 2. d4 {[%clk 0:02:59]}  d5 {[%clk 0:02:59]} 3. Bd3 {[%clk 0:03:00]}  dxe4 {[%clk 0:02:57]} 4. Bxe4 {[%clk 0:03:00]}  Nf6 {[%clk 0:02:58]} 5. Bd3 {[%clk 0:03:00]}  c5 {[%clk 0:02:57]} 6. dxc5 {[%clk 0:03:00]}  Bxc5 {[%clk 0:02:58]} 7. Nf3 {[%clk 0:03:00]}  O-O {[%clk 0:02:57]} 8. O-O {[%clk 0:02:59]}  b6 {[%clk 0:02:54]} 9. Qe2 {[%clk 0:02:58]}  Bb7 {[%clk 0:02:54]} 10. Nc3 {[%clk 0:02:58]}  Nbd7 {[%clk 0:02:53]} 11. Bg5 {[%clk 0:02:56]}  Be7 {[%clk 0:02:51]} 12. Rad1 {[%clk 0:02:51]}  a6 {[%clk 0:02:39]} 13. Ne4 {[%clk 0:02:41]}  Qc7 {[%clk 0:02:37]} 14. Nxf6+ {[%clk 0:02:39]}  Nxf6 {[%clk 0:02:30]} 15. c4 {[%clk 0:02:37]}  Qc6 {[%clk 0:02:26]} 16. b3 {[%clk 0:02:31]}  Rfd8 {[%clk 0:02:24]} 17. Bb1 {[%clk 0:02:25]}  b5 {[%clk 0:02:13]} 18. cxb5 {[%clk 0:02:21]}  axb5 {[%clk 0:02:14]} 19. Rxd8+ {[%clk 0:02:18]}  Rxd8 {[%clk 0:02:13]} 20. Rd1 {[%clk 0:02:18]}  Rxd1+ {[%clk 0:02:08]} 21. Qxd1 {[%clk 0:02:17]}  b4 {[%clk 0:02:09]} 22. Bxf6 {[%clk 0:02:08]}  Bxf6 {[%clk 0:02:08]} 23. Qc2 {[%clk 0:02:08]}  g6 {[%clk 0:01:49]} 24. Qxc6 {[%clk 0:02:06]}  Bxc6 {[%clk 0:01:50]} 25. Bd3 {[%clk 0:02:02]}  Bc3 {[%clk 0:01:47]} 26. Kf1 {[%clk 0:02:02]}  Kg7 {[%clk 0:01:46]} 27. Ke2 {[%clk 0:02:00]}  f5 {[%clk 0:01:46]} 28. g3 {[%clk 0:01:56]}  e5 {[%clk 0:01:45]} 29. Nd2 {[%clk 0:01:55]}  e4 {[%clk 0:01:45]} 30. Bc4 {[%clk 0:01:52]}  Kf6 {[%clk 0:01:45]} 31. Nf1 {[%clk 0:01:50]}  g5 {[%clk 0:01:42]} 32. Ne3 {[%clk 0:01:48]}  Ke5 {[%clk 0:01:42]} 33. Nc2 {[%clk 0:01:47]}  f4 {[%clk 0:01:40]} 34. gxf4+ {[%clk 0:01:45]}  gxf4 {[%clk 0:01:41]} 35. a4 {[%clk 0:01:41]}  bxa3 {[%clk 0:01:26]} 36. Nxa3 {[%clk 0:01:41]}  f3+ {[%clk 0:01:26]} 37. Kf1 {[%clk 0:01:37]}  h6 {[%clk 0:01:07]} 38. Nc2 {[%clk 0:01:22]}  Bd7 {[%clk 0:01:07]} 39. Ne3 {[%clk 0:01:11]}  Bh3+ {[%clk 0:01:05]} 40. Kg1 {[%clk 0:01:10]}  Bd2 {[%clk 0:01:04]} 41. Nc2 {[%clk 0:01:02]}  Kf4 {[%clk 0:01:01]} 42. b4 {[%clk 0:00:59]}  e3 {[%clk 0:00:51]} 43. fxe3+ {[%clk 0:00:35]}  Bxe3+ {[%clk 0:00:51]} 44. Nxe3 {[%clk 0:00:27]}  Kxe3 {[%clk 0:00:51]} 45. b5 {[%clk 0:00:25]}  f2+ {[%clk 0:00:51]} 46. Kh1 {[%clk 0:00:25]}  Kd2 {[%clk 0:00:39]} 47. b6 {[%clk 0:00:20]}  Ke1 {[%clk 0:00:39]} 48. b7 {[%clk 0:00:03]}  f1=Q+ {[%clk 0:00:38]} 49. Bxf1 {[%clk 0:00:02]}  Kxf1 {[%clk 0:00:38]} 50. b8=Q {[%clk 0:00:01]}  Bg2# {[%clk 0:00:38]} 0-1


[Site "https://www.chess.com"]

[Event "Titled Tuesday Blitz June 28 Early 2022"]
[White "Dankhazi, Andras"]
[Black "Terry, Renato"]
[WhiteFideId "714267"]
[BlackFideId "3803457"]
[WhiteElo "2325"]
[BlackElo "2577"]
[Result "0-1"]
[Round "03"]
[TimeControl "180+1"]
[Date "2022.06.28"]
[WhiteClock "0:00:16"]
[BlackClock "0:01:14"]

1. g3 {[%clk 0:03:00]}  d5 {[%clk 0:02:59]} 2. Nf3 {[%clk 0:03:00]}  Nf6 {[%clk 0:03:00]} 3. Bg2 {[%clk 0:03:00]}  c6 {[%clk 0:03:01]} 4. O-O {[%clk 0:02:59]}  Bg4 {[%clk 0:03:01]} 5. h3 {[%clk 0:02:56]}  Bxf3 {[%clk 0:02:58]} 6. Bxf3 {[%clk 0:02:57]}  e5 {[%clk 0:02:59]} 7. d3 {[%clk 0:02:57]}  Nbd7 {[%clk 0:02:58]} 8. Nd2 {[%clk 0:02:58]}  Be7 {[%clk 0:02:58]} 9. e4 {[%clk 0:02:58]}  dxe4 {[%clk 0:02:57]} 10. dxe4 {[%clk 0:02:53]}  O-O {[%clk 0:02:57]} 11. Qe2 {[%clk 0:02:54]}  Qc7 {[%clk 0:02:57]} 12. Rd1 {[%clk 0:02:50]}  Nc5 {[%clk 0:02:55]} 13. Nc4 {[%clk 0:02:47]}  Rfd8 {[%clk 0:02:49]} 14. Bg5 {[%clk 0:02:43]}  Ne6 {[%clk 0:02:49]} 15. Bxf6 {[%clk 0:02:33]}  Bxf6 {[%clk 0:02:50]} 16. c3 {[%clk 0:02:33]}  b5 {[%clk 0:02:43]} 17. Ne3 {[%clk 0:02:32]}  Nc5 {[%clk 0:02:38]} 18. Rxd8+ {[%clk 0:02:11]}  Rxd8 {[%clk 0:02:39]} 19. Rd1 {[%clk 0:02:11]}  g6 {[%clk 0:02:39]} 20. h4 {[%clk 0:02:05]}  h5 {[%clk 0:02:29]} 21. Qc2 {[%clk 0:02:00]}  a5 {[%clk 0:02:24]} 22. Kf1 {[%clk 0:01:26]}  Rd7 {[%clk 0:02:22]} 23. Ke2 {[%clk 0:01:18]}  Bg7 {[%clk 0:02:22]} 24. Rxd7 {[%clk 0:01:17]}  Qxd7 {[%clk 0:02:23]} 25. Qd1 {[%clk 0:01:16]}  Qe7 {[%clk 0:02:20]} 26. Kf1 {[%clk 0:01:07]}  Bh6 {[%clk 0:02:20]} 27. Nc2 {[%clk 0:01:07]}  Na4 {[%clk 0:02:20]} 28. Na3 {[%clk 0:00:54]}  Nxb2 {[%clk 0:02:16]} 29. Qb3 {[%clk 0:00:54]}  Nd3 {[%clk 0:02:16]} 30. c4 {[%clk 0:00:51]}  Nc5 {[%clk 0:02:13]} 31. Qd1 {[%clk 0:00:48]}  Ne6 {[%clk 0:02:09]} 32. Qd3 {[%clk 0:00:46]}  b4 {[%clk 0:02:07]} 33. Nc2 {[%clk 0:00:46]}  Nc5 {[%clk 0:02:06]} 34. Qd1 {[%clk 0:00:46]}  Kg7 {[%clk 0:02:00]} 35. Kg2 {[%clk 0:00:46]}  Qe6 {[%clk 0:01:55]} 36. Qe2 {[%clk 0:00:43]}  Qd6 {[%clk 0:01:55]} 37. Ne1 {[%clk 0:00:32]}  Qd2 {[%clk 0:01:54]} 38. Nc2 {[%clk 0:00:28]}  Qxe2 {[%clk 0:01:53]} 39. Bxe2 {[%clk 0:00:29]}  Nxe4 {[%clk 0:01:53]} 40. Bf3 {[%clk 0:00:30]}  Nc3 {[%clk 0:01:53]} 41. Bxc6 {[%clk 0:00:29]}  Nxa2 {[%clk 0:01:54]} 42. c5 {[%clk 0:00:29]}  b3 {[%clk 0:01:50]} 43. Na3 {[%clk 0:00:28]}  Bc1 {[%clk 0:01:33]} 44. Nb1 {[%clk 0:00:26]}  Nb4 {[%clk 0:01:24]} 45. Ba4 {[%clk 0:00:20]}  b2 {[%clk 0:01:24]} 46. c6 {[%clk 0:00:20]}  Nd5 {[%clk 0:01:24]} 47. Kf3 {[%clk 0:00:20]}  f5 {[%clk 0:01:24]} 48. Ke2 {[%clk 0:00:20]}  Kf6 {[%clk 0:01:24]} 49. Kd3 {[%clk 0:00:19]}  Ke7 {[%clk 0:01:24]} 50. Kc4 {[%clk 0:00:20]}  Kd6 {[%clk 0:01:18]} 51. Kb5 {[%clk 0:00:20]}  e4 {[%clk 0:01:17]} 52. Kxa5 {[%clk 0:00:20]}  e3 {[%clk 0:01:17]} 53. fxe3 {[%clk 0:00:20]}  Bxe3 {[%clk 0:01:18]} 54. Kb5 {[%clk 0:00:18]}  Bf2 {[%clk 0:01:18]} 55. Kc4 {[%clk 0:00:17]}  Nb6+ {[%clk 0:01:14]} 56. Kb5 {[%clk 0:00:16]}  Nxa4 {[%clk 0:01:14]} 0-1


[Site "https://www.chess.com"]

[Event "Titled Tuesday Blitz June 28 Early 2022"]
[White "Deac, Bogdan-Daniel"]
[Black "Dobre, Claudiu-Cristian"]
[WhiteFideId "1226380"]
[BlackFideId "1211854"]
[WhiteElo "2648"]
[BlackElo "2207"]
[Result "1-0"]
[Round "03"]
[TimeControl "180+1"]
[Date "2022.06.28"]
[WhiteClock "0:00:25"]
[BlackClock "0:00:03"]

1. e4 {[%clk 0:03:00]}  Nc6 {[%clk 0:02:59]} 2. Nf3 {[%clk 0:03:00]}  d6 {[%clk 0:02:59]} 3. d4 {[%clk 0:03:00]}  Nf6 {[%clk 0:03:00]} 4. c3 {[%clk 0:03:00]}  e5 {[%clk 0:02:51]} 5. Bb5 {[%clk 0:02:55]}  Bd7 {[%clk 0:02:48]} 6. Nbd2 {[%clk 0:02:54]}  a6 {[%clk 0:02:38]} 7. Ba4 {[%clk 0:02:53]}  b5 {[%clk 0:02:32]} 8. Bb3 {[%clk 0:02:51]}  Na5 {[%clk 0:02:32]} 9. dxe5 {[%clk 0:02:48]}  Nxb3 {[%clk 0:02:27]} 10. Qxb3 {[%clk 0:02:44]}  Ng4 {[%clk 0:02:02]} 11. exd6 {[%clk 0:02:41]}  Bxd6 {[%clk 0:02:02]} 12. h3 {[%clk 0:02:41]}  Ne5 {[%clk 0:01:52]} 13. Nxe5 {[%clk 0:02:34]}  Bxe5 {[%clk 0:01:51]} 14. Nf3 {[%clk 0:02:33]}  Be6 {[%clk 0:01:41]} 15. Qc2 {[%clk 0:02:32]}  f6 {[%clk 0:01:37]} 16. O-O {[%clk 0:02:24]}  O-O {[%clk 0:01:36]} 17. Be3 {[%clk 0:02:18]}  Qe7 {[%clk 0:01:31]} 18. a4 {[%clk 0:02:15]}  b4 {[%clk 0:00:42]} 19. cxb4 {[%clk 0:02:02]}  Bd6 {[%clk 0:00:26]} 20. Nd4 {[%clk 0:01:53]}  Bd7 {[%clk 0:00:25]} 21. b5 {[%clk 0:01:46]}  axb5 {[%clk 0:00:17]} 22. axb5 {[%clk 0:01:46]}  Rxa1 {[%clk 0:00:16]} 23. Rxa1 {[%clk 0:01:46]}  Re8 {[%clk 0:00:17]} 24. Ra7 {[%clk 0:01:03]}  Qe5 {[%clk 0:00:14]} 25. b6 {[%clk 0:01:02]}  Qh2+ {[%clk 0:00:14]} 26. Kf1 {[%clk 0:01:02]}  Qh1+ {[%clk 0:00:14]} 27. Ke2 {[%clk 0:01:01]}  Qxg2 {[%clk 0:00:11]} 28. bxc7 {[%clk 0:00:54]}  Bxh3 {[%clk 0:00:11]} 29. Qc4+ {[%clk 0:00:33]}  Kh8 {[%clk 0:00:09]} 30. Qc6 {[%clk 0:00:27]}  Qf1+ {[%clk 0:00:09]} 31. Kd2 {[%clk 0:00:27]}  Bb4+ {[%clk 0:00:09]} 32. Kc2 {[%clk 0:00:27]}  Rc8 {[%clk 0:00:07]} 33. Ra8 {[%clk 0:00:25]}  Qg2 {[%clk 0:00:03]} 34. Rxc8+ {[%clk 0:00:25]} 1-0


[Site "https://www.chess.com"]